[Event "URU-ch Semi Final 2020"]
[Site "Montevideo"]
[Date "2020.02.24"]
[Round "6.22"]
[White "Osinaga, Eduardo"]
[Black "Lanaro, Emilio"]
[Result "1-0"]
[ECO "B90"]
[WhiteElo "1697"]
[BlackElo "1670"]
[Annotator "NA RC"]
[PlyCount "61"]
[EventDate "2020.02.22"]
[EventType "swiss"]
[EventCountry "URU"]
[SourceTitle "playchess.com"]
[Source "ChessBase"]
[SourceQuality "1"]
[TimeControl "5400+30"]

1. e4 {[%emt 0:00:14]} c5 {[%emt 0:00:00]} 2. Nf3 {[%emt 0:00:18]} d6 {[%emt 0:00:00]} 3. d4 {[%emt 0:00:08]} cxd4 {[%emt 0:00:00]} 4. Nxd4 {[%emt 0:00:07]} Nf6 {[%emt 0:00:04]} 5. Nc3 {[%emt 0:00:31]} a6 {[%emt 0:00:13]} 6. Bd3 {[%emt 0:00:49]} e5 {[%emt 0:00:10]} 7. Nde2 {[%emt 0:01:07]} Be7 {[%emt 0:00:15]} 8. O-O {[%emt 0:00:09]} O-O {[%emt 0:00:16]} 9. h3 {[%emt 0:00:28]} b5 {[%emt 0:05:31]} 10. a3 {[%emt 0:02:14]} Bb7 {[%emt 0:00:09]} 11. f4 {[%emt 0:00:33]} Nbd7 12. Nd5 {[%emt 0:05:43]} Bxd5 {[%emt 0:07:11]} 13. exd5 {[%emt 0:00:16]} e4 {[%emt 0:00:20]} 14. Ng3 {[%emt 0:02:23]} exd3 {[%emt 0:00:42]} 15. Qxd3 {[%emt 0:00:17]} Re8 {[%emt 0:03:58]} 16. Nf5 {[%emt 0:00:55]} Nb6 {[%emt 0:03:56]} 17. Qg3 {[%emt 0:00:51]} Bf8 {[%emt 0:00:16]} 18. Nh6+ {[%emt 0:00:49]} Kh8 {[%emt 0:00:33]} 19. Nxf7+ {[%emt 0:00:11]} Kg8 {[%emt 0:00:05]} 20. Nxd8 {[%emt 0:00:16]} Raxd8 {[%emt 0:00:02]} 21. Bd2 {[%emt 0:01:52]} Nfxd5 {[%emt 0:00:48]} 22. Ba5 {[%emt 0:01:04]} Re3 {[%emt 0:02:12]} 23. Rf3 Rde8 {[%emt 0:01:23]} 24. Bxb6 {[%emt 0:03:43]} Rxf3 {[%emt 0:00:34]} 25. Qxf3 {[%emt 0:00:23]} Nxb6 {[%emt 0:00:04]} 26. Qc6 {[%emt 0:01:22]} Rc8 {[%emt 0:02:03]} 27. Qxb6 {[%emt 0:00:21]} d5 {[%emt 0:00:10]} 28. Qxa6 {[%emt 0:00:17]} Rxc2 {[%emt 0:00:39]} 29. Qxb5 Rc8 {[%emt 0:00:42]} 30. Qxd5+ {[%emt 0:00:25]} Kh8 {[%emt 0:00:08]} 31. Re1 {[%emt 0:00:37]} 1-0

[Event "URU-ch Semi Final 2020"]
[Site "Montevideo"]
[Date "2020.02.24"]
[Round "6.23"]
[White "Svarcas, Anibal"]
[Black "Lima Abadal, Nicolas"]
[Result "1-0"]
[ECO "B50"]
[WhiteElo "1672"]
[BlackElo "1646"]
[Annotator "NA RC"]
[PlyCount "47"]
[EventDate "2020.02.22"]
[EventType "swiss"]
[EventCountry "URU"]
[SourceTitle "playchess.com"]
[Source "ChessBase"]
[SourceQuality "1"]
[TimeControl "5400+30"]

1. e4 {[%emt 0:00:00]} c5 {[%emt 0:00:00]} 2. Nf3 {[%emt 0:00:00]} d6 {[%emt 0:00:00]} 3. d4 {[%emt 0:00:00]} cxd4 {[%emt 0:00:00]} 4. c3 {[%emt 0:00:00]} dxc3 {[%emt 0:01:25]} 5. Nxc3 {[%emt 0:00:04]} Nc6 {[%emt 0:02:08]} 6. Bc4 {[%emt 0:00:10]} e6 {[%emt 0:00:43]} 7. O-O {[%emt 0:00:20]} Be7 {[%emt 0:00:59]} 8. Qe2 {[%emt 0:00:18]} a6 {[%emt 0:01:49]} 9. Rd1 {[%emt 0:00:12]} Qc7 {[%emt 0:00:12]} 10. Bf4 {[%emt 0:00:27]} b5 {[%emt 0:08:16]} 11. Bb3 {[%emt 0:00:09]} Nf6 {[%emt 0:06:48]} 12. Rac1 {[%emt 0:00:12]} Bb7 {[%emt 0:05:26]} 13. e5 {[%emt 0:02:18]} dxe5 {[%emt 0:00:30]} 14. Nxe5 {[%emt 0:00:25]} Qb6 {[%emt 0:09:13]} 15. Nxf7 {[%emt 0:04:55]} Nd4 {[%emt 0:16:05]} 16. Rxd4 {[%emt 0:06:43]} Kxf7 {[%emt 0:07:04]} 17. Rd6 {[%emt 0:05:28]} Qxd6 {[%emt 0:26:16]} 18. Bxd6 {[%emt 0:00:14]} Bxd6 {[%emt 0:00:18]} 19. Qxe6+ {[%emt 0:00:08]} Kg6 {[%emt 0:00:08]} 20. Bc2+ {[%emt 0:00:10]} Kh6 {[%emt 0:01:41]} 21. Qxd6 {[%emt 0:02:10]} Rhf8 {[%emt 0:01:05]} 22. Qf4+ {[%emt 0:00:41]} Kh5 {[%emt 0:01:04]} 23. h4 {[%emt 0:02:56]} h6 {[%emt 0:00:42]} 24. Qf5+ {[%emt 0:01:16]} 1-0

[Event "URU-ch Semi Final 2020"]
[Site "Montevideo"]
[Date "2020.02.25"]
[Round "7.13"]
[White "Manteiga, Franco"]
[Black "Ruggiero, Alvaro"]
[Result "1-0"]
[ECO "D10"]
[WhiteElo "1703"]
[BlackElo "1843"]
[Annotator "NA RC"]
[PlyCount "85"]
[EventDate "2020.02.22"]
[EventType "swiss"]
[EventCountry "URU"]
[SourceTitle "playchess.com"]
[Source "ChessBase"]
[SourceQuality "1"]
[TimeControl "5400+30"]

1. d4 {[%emt 0:00:00]} d5 {[%emt 0:01:02]} 2. c4 {[%emt 0:00:00]} c6 {[%emt 0:00:11]} 3. cxd5 {[%emt 0:00:00]} cxd5 {[%emt 0:00:10]} 4. Nc3 {[%emt 0:00:00]} Nf6 {[%emt 0:00:08]} 5. Bf4 {[%emt 0:00:06]} Nc6 {[%emt 0:00:22]} 6. e3 {[%emt 0:00:34]} Bf5 {[%emt 0:00:30]} 7. Qb3 {[%emt 0:01:14]} Qd7 {[%emt 0:00:34] D10: Slav Defence: 3 cxd5 (without early Nf3) and 3 Nc3.} 8. Bb5 {[%emt 0:18:02]} a6 {[%emt 0:00:23] [#]} 9. Ba4 $2 $146 {[%emt 0:03:50]} ({Predecessor:} 9. Bxc6 $1 $16 {and life is bright.} Qxc6 10. Nf3 e6 11. Ne5 Qc8 12. Rc1 b5 13. O-O Qb7 14. h3 Be7 15. Na4 {½-½ (48) Krug,M (1657)-Wiese,T (1857) Dortmund 2019}) 9... e6 {[%emt 0:01:26]} 10. Nf3 {[%emt 0:07:53]} (10. Bxc6 $11 Qxc6 11. Nf3) 10... Be7 {[%emt 0:01:51]} 11. Ne5 {[%emt 0:00:33]} Qc8 {[%emt 0:00:10] [#]} 12. Qxb7 {[%emt 0:03:17]} ({White should play} 12. Rc1 $1 $18) 12... Qxb7 {[%emt 0:00:43]} 13. Bxc6+ {[%emt 0:00:05]} Qxc6 {[%emt 0:00:58]} 14. Nxc6 {[%emt 0:00:03]} Rc8 {[%emt 0:03:34]} 15. Nxe7 {[%emt 0:01:11]} Kxe7 {[%emt 0:00:09]} 16. Bg5 {[%emt 0:03:39]} h6 {[%emt 0:00:44]} 17. Bxf6+ $1 {[%emt 0:02:07]} Kxf6 {[%emt 0:00:08]} 18. Kd2 {[%emt 0:01:05]} Rc6 {[%emt 0:00:54]} 19. Rac1 {[%emt 0:10:00]} Rb6 {[%emt 0:01:02]} (19... Rhc8 $16 {was necessary.}) 20. b3 {[%emt 0:02:01]} Ra8 {[%emt 0:00:53]} 21. Na4 {[%emt 0:00:47]} Rd6 {[%emt 0:00:31]} 22. Rc7 $18 {[%emt 0:02:49]} Bg6 {[%emt 0:00:59]} 23. Rhc1 {[%emt 0:01:02]} e5 {[%emt 0:00:25]} 24. R1c6 {[%emt 0:01:59]} Rad8 {[%emt 0:01:22]} 25. Nc5 {[%emt 0:01:29]} exd4 {[%emt 0:01:25]} 26. exd4 {[%emt 0:02:13]} Kg5 {[%emt 0:00:36]} 27. Rxd6 {[%emt 0:00:47]} Rxd6 {[%emt 0:00:09]} 28. Ra7 {[%emt 0:00:10]} Bb1 {[%emt 0:00:53]} 29. a3 {[%emt 0:04:35]} Rf6 {[%emt 0:01:19]} 30. Ke3 Ba2 31. Rxa6 {[%emt 0:01:25]} Rxa6 {[%emt 0:00:43]} 32. Nxa6 {[%emt 0:00:05]} Bxb3 {[%emt 0:00:00]} 33. Nc5 {[%emt 0:00:41]} Bc4 {[%emt 0:00:23]} 34. a4 {[%emt 0:01:09]} f5 {[%emt 0:00:05]} 35. a5 {[%emt 0:01:09]} f4+ {[%emt 0:00:07]} 36. Kd2 {[%emt 0:00:19]} Bb5 {[%emt 0:00:26]} 37. a6 {[%emt 0:00:06]} f3 {[%emt 0:00:39]} 38. g3 {[%emt 0:00:16]} Kg4 {[%emt 0:00:40]} 39. h4 {[%emt 0:00:20]} g5 {[%emt 0:00:28]} 40. hxg5 {[%emt 0:00:11]} hxg5 {[%emt 0:00:10]} 41. a7 {[%emt 0:00:03]} Bc6 {[%emt 0:00:07]} 42. Nd7 {[%emt 0:00:15]} Bxd7 {[%emt 0:01:00]} 43. a8=Q {[%emt 0:00:09]} 1-0

[Event "URU-ch Semi Final 2020"]
[Site "Montevideo"]
[Date "2020.02.25"]
[Round "7.14"]
[White "Nakle, Gonzalo"]
[Black "Zaruski, Julio"]
[Result "0-1"]
[ECO "D43"]
[WhiteElo "1675"]
[BlackElo "1822"]
[Annotator "NA RC"]
[PlyCount "76"]
[EventDate "2020.02.22"]
[EventType "swiss"]
[EventCountry "URU"]
[SourceTitle "playchess.com"]
[Source "ChessBase"]
[SourceQuality "1"]
[TimeControl "5400+30"]

1. d4 {[%emt 0:00:35]} e6 {[%emt 0:00:50]} 2. c4 {[%emt 0:00:15]} d5 {[%emt 0:00:55]} 3. Nc3 {[%emt 0:00:56]} c6 {[%emt 0:01:13]} 4. Nf3 {[%emt 0:00:19]} Nf6 {[%emt 0:00:19]} 5. g3 {[%emt 0:00:11]} Be7 {[%emt 0:00:18]} 6. Bg2 {[%emt 0:00:05]} O-O {[%emt 0:00:14]} 7. O-O {[%emt 0:00:05]} a6 {[%emt 0:00:49] E06: Closed Catalan: Early deviations.} 8. b3 {[%emt 0:00:06] [#]} Bb4 $146 {[%emt 0:07:11]} ({Predecessor:} 8... a5 9. Qc2 b6 10. e4 Bb7 11. Rd1 Na6 12. Ne5 Rc8 13. Bb2 Bb4 14. exd5 cxd5 {1-0 (64) Garriga Cazorla,P (2406)-Mehar,C (2287) Sitges 2017}) 9. Bb2 {[%emt 0:00:48]} Bxc3 {[%emt 0:00:07]} 10. Bxc3 {[%emt 0:00:09]} Ne4 {[%emt 0:00:05]} 11. Bb2 {[%emt 0:00:18]} Nd7 {[%emt 0:00:52]} 12. Ne1 {[%emt 0:00:14]} f5 {[%emt 0:00:15]} 13. Nd3 {[%emt 0:00:07]} Qg5 {[%emt 0:04:39]} 14. f3 {[%emt 0:01:08]} Nd6 {[%emt 0:01:53]} 15. Bc1 {[%emt 0:00:21]} Qd8 {[%emt 0:01:21]} 16. Bf4 {[%emt 0:00:09]} Nf6 {[%emt 0:00:56]} 17. Be5 {[%emt 0:00:21]} dxc4 {[%emt 0:00:35]} 18. Nc5 {[%emt 0:00:18]} b6 {[%emt 0:00:51]} 19. Na4 {[%emt 0:00:17]} Ra7 {[%emt 0:05:03] [#]} (19... Nd5 $11) 20. Bxd6 {[%emt 0:00:05]} ({White must play} 20. Nxb6 $1 $16 {[%mdl 512]} cxb3 (20... Qxb6 21. Bxd6) 21. Nxc8 (21. Qxb3 Rb7 $16) (21. axb3 Nf7 $16) 21... Nxc8 22. Qxb3) 20... Qxd6 {[%emt 0:00:08]} 21. bxc4 {[%emt 0:00:06]} b5 {[%emt 0:05:48]} 22. c5 {[%emt 0:00:21]} Qe7 {[%emt 0:00:53]} 23. Nb6 {[%emt 0:00:11]} e5 {[%emt 0:00:16]} 24. e4 {[%emt 0:05:05] [#]} (24. f4 $11 e4 25. a4) 24... fxe4 $1 {[%emt 0:03:47]} 25. fxe4 {[%emt 0:00:05]} Bg4 {[%emt 0:01:12]} 26. Qb3+ {[%emt 0:00:11]} Be6 {[%emt 0:00:51]} 27. d5 $2 {[%emt 0:01:35]} ({White should play} 27. Qe3 $15) 27... Qxc5+ {[%emt 0:00:08] Double Attack} 28. Kh1 {[%emt 0:00:05]} Bf7 {[%emt 0:02:41]} 29. Rac1 {[%emt 0:02:06]} Qxb6 {[%emt 0:00:25]} 30. Qc3 {[%emt 0:00:31]} cxd5 {[%emt 0:00:37]} 31. exd5 {[%emt 0:00:11]} Nxd5 {[%emt 0:08:29]} 32. Qxe5 {[%emt 0:01:41]} Ne3 $19 {[%emt 0:00:22]} 33. Rxf7 {[%emt 0:00:15]} Raxf7 {[%emt 0:00:09]} 34. Bd5 {[%emt 0:00:07]} Nxd5 {[%emt 0:00:07]} 35. Qxd5 {[%emt 0:00:01]} Qb7 {[%emt 0:00:53]} 36. Rc6 {[%emt 0:00:03]} h6 {[%emt 0:05:30]} 37. Qe6 {[%emt 0:00:06]} Kh8 {[%emt 0:00:57]} 38. Kg2 {[%emt 0:00:11]} Rf6 {[%emt 0:00:42]} 0-1

[Event "URU-ch Semi Final 2020"]
[Site "Montevideo"]
[Date "2020.02.25"]
[Round "7.15"]
[White "Garcia, Matias"]
[Black "Campora, Edgardo"]
[Result "1/2-1/2"]
[ECO "C68"]
[WhiteElo "1810"]
[BlackElo "1676"]
[Annotator "NA RC"]
[PlyCount "74"]
[EventDate "2020.02.22"]
[EventType "swiss"]
[EventCountry "URU"]
[SourceTitle "playchess.com"]
[Source "ChessBase"]
[SourceQuality "1"]
[TimeControl "5400+30"]

1. e4 {[%emt 0:00:00]} e5 {[%emt 0:00:36]} 2. Nf3 {[%emt 0:00:00]} Nc6 {[%emt 0:00:04]} 3. Bb5 {[%emt 0:00:00]} a6 {[%emt 0:00:06]} 4. Bxc6 {[%emt 0:00:57]} dxc6 {[%emt 0:00:07]} 5. d4 {[%emt 0:00:07]} exd4 {[%emt 0:00:58]} 6. Qxd4 {[%emt 0:00:10]} Qxd4 {[%emt 0:01:50]} 7. Nxd4 {[%emt 0:00:07]} Bd6 {[%emt 0:00:08]} 8. Be3 {[%emt 0:00:58]} Ne7 {[%emt 0:00:30]} 9. Nd2 {[%emt 0:02:49]} c5 {[%emt 0:02:59]} 10. N4b3 {[%emt 0:03:51]} b6 {[%emt 0:00:07]} 11. Nc4 {[%emt 0:01:06]} Be6 {[%emt 0:01:35]} 12. Nbd2 {[%emt 0:03:15]} Ng6 {[%emt 0:03:36]} 13. g3 {[%emt 0:02:54]} Ne5 {[%emt 0:18:26]} 14. Nxd6+ {[%emt 0:09:10]} cxd6 {[%emt 0:00:06]} 15. f4 {[%emt 0:01:19]} Nc4 {[%emt 0:08:01]} 16. Nxc4 {[%emt 0:03:10]} Bxc4 {[%emt 0:04:09]} 17. O-O-O {[%emt 0:00:55]} O-O-O {[%emt 0:00:14]} 18. Rd2 {[%emt 0:01:22]} Rhe8 {[%emt 0:01:33]} 19. e5 {[%emt 0:15:03]} dxe5 {[%emt 0:02:38]} 20. Rxd8+ {[%emt 0:01:01]} Kxd8 {[%emt 0:00:06]} 21. Rd1+ {[%emt 0:00:08]} Kc8 {[%emt 0:00:05]} 22. a3 {[%emt 0:04:18]} exf4 {[%emt 0:14:30]} 23. Bxf4 {[%emt 0:00:27]} Re6 {[%emt 0:00:06]} 24. Rd6 {[%emt 0:04:00]} Rxd6 {[%emt 0:03:17]} 25. Bxd6 {[%emt 0:00:39]} Kd7 {[%emt 0:01:01]} 26. Bf8 {[%emt 0:00:49]} g6 {[%emt 0:01:42]} 27. Bh6 {[%emt 0:00:49]} Ke6 {[%emt 0:00:26]} 28. Bf4 {[%emt 0:04:05]} Bd5 {[%emt 0:01:23]} 29. Kd2 {[%emt 0:00:42]} Kf5 {[%emt 0:04:21]} 30. Ke3 {[%emt 0:07:17]} Kg4 {[%emt 0:01:59]} 31. Kf2 {[%emt 0:02:07]} h5 {[%emt 0:01:22]} 32. c3 {[%emt 0:11:46]} c4 {[%emt 0:01:52]} 33. a4 {[%emt 0:03:54]} b5 {[%emt 0:03:14]} 34. axb5 {[%emt 0:00:38]} axb5 {[%emt 0:00:05]} 35. Bd6 {[%emt 0:01:50]} Kf5 {[%emt 0:01:42]} 36. Ke3 {[%emt 0:00:35]} Kg4 {[%emt 0:00:24]} 37. Kf2 {[%emt 0:00:14]} Kf5 {[%emt 0:00:05]} 1/2-1/2

[Event "URU-ch Semi Final 2020"]
[Site "Montevideo"]
[Date "2020.02.25"]
[Round "7.16"]
[White "Ramirez, Agustin"]
[Black "Torales, Agustin"]
[Result "1/2-1/2"]
[ECO "B34"]
[WhiteElo "1715"]
[BlackElo "1623"]
[Annotator "NA RC"]
[PlyCount "57"]
[EventDate "2020.02.22"]
[EventType "swiss"]
[EventCountry "URU"]
[SourceTitle "playchess.com"]
[Source "ChessBase"]
[SourceQuality "1"]
[TimeControl "5400+30"]

1. e4 {[%emt 0:00:00]} c5 {[%emt 0:00:00]} 2. Nf3 {[%emt 0:00:00]} Nc6 {[%emt 0:00:00]} 3. d4 {[%emt 0:00:00]} cxd4 {[%emt 0:00:00]} 4. Nxd4 {[%emt 0:00:00]} Nf6 {[%emt 0:00:07]} 5. Nc3 {[%emt 0:00:00]} e5 {[%emt 0:00:34]} 6. Ndb5 {[%emt 0:00:00]} d6 {[%emt 0:00:06]} 7. Nd5 {[%emt 0:00:00]} Nxd5 {[%emt 0:00:03]} 8. exd5 Nb8 9. a4 {[%emt 0:00:49]} Be7 {[%emt 0:02:35]} 10. Be2 {[%emt 0:00:40]} O-O {[%emt 0:01:56]} 11. O-O {[%emt 0:01:29]} f5 {[%emt 0:02:09]} 12. Kh1 {[%emt 0:01:55]} a6 {[%emt 0:03:17]} 13. Na3 {[%emt 0:00:20]} Nd7 {[%emt 0:03:55]} 14. f4 {[%emt 0:02:29]} Bf6 {[%emt 0:11:20]} 15. Nc4 {[%emt 0:05:35]} Qc7 {[%emt 0:03:35]} 16. c3 {[%emt 0:07:02]} a5 {[%emt 0:05:17]} 17. Qc2 {[%emt 0:01:56]} e4 {[%emt 0:03:37]} 18. Be3 {[%emt 0:05:46]} b6 {[%emt 0:06:16]} 19. Rab1 {[%emt 0:05:04]} Ba6 {[%emt 0:11:15]} 20. Na3 {[%emt 0:02:06]} Bxe2 {[%emt 0:00:07]} 21. Qxe2 Nc5 {[%emt 0:00:15]} 22. Nb5 {[%emt 0:10:27]} Qd7 {[%emt 0:00:16]} 23. Bxc5 {[%emt 0:00:12]} dxc5 {[%emt 0:00:10]} 24. Rbd1 {[%emt 0:01:33]} Rad8 {[%emt 0:02:23]} 25. Rd2 {[%emt 0:01:36]} g5 {[%emt 0:02:45]} 26. g3 {[%emt 0:14:52]} g4 {[%emt 0:04:23]} 27. Rfd1 {[%emt 0:00:48]} h5 {[%emt 0:01:19]} 28. Kg2 {[%emt 0:01:43]} Rf7 {[%emt 0:02:38]} 29. Rh1 {[%emt 0:05:40]} 1/2-1/2

[Event "URU-ch Semi Final 2020"]
[Site "Montevideo"]
[Date "2020.02.25"]
[Round "7.17"]
[White "Rey, Fernando"]
[Black "Amaral, Francisco"]
[Result "1/2-1/2"]
[ECO "B07"]
[WhiteElo "1640"]
[BlackElo "1567"]
[Annotator "NA RC"]
[PlyCount "51"]
[EventDate "2020.02.22"]
[EventType "swiss"]
[EventCountry "URU"]
[SourceTitle "playchess.com"]
[Source "ChessBase"]
[SourceQuality "1"]
[TimeControl "5400+30"]

1. e4 {[%emt 0:01:24]} d6 {[%emt 0:00:08]} 2. d4 {[%emt 0:00:08]} Nf6 {[%emt 0:00:06]} 3. Nc3 {[%emt 0:00:10]} Nbd7 {[%emt 0:00:38]} 4. Nf3 {[%emt 0:00:52]} e5 {[%emt 0:00:27]} 5. Bc4 {[%emt 0:01:48]} Be7 {[%emt 0:00:24]} 6. h3 {[%emt 0:04:50]} c6 {[%emt 0:00:53]} 7. O-O {[%emt 0:00:53]} b5 {[%emt 0:05:04]} 8. Bb3 {[%emt 0:00:08]} Bb7 {[%emt 0:00:08]} 9. a3 {[%emt 0:06:14]} Qc7 {[%emt 0:02:25]} 10. Re1 {[%emt 0:07:52]} O-O {[%emt 0:01:33]} 11. Qe2 {[%emt 0:02:36]} a6 {[%emt 0:01:54]} 12. Bg5 {[%emt 0:00:22]} Rfe8 {[%emt 0:01:03]} 13. dxe5 {[%emt 0:04:49]} Nxe5 {[%emt 0:01:40]} 14. Nxe5 {[%emt 0:00:49]} dxe5 {[%emt 0:00:07]} 15. Rad1 {[%emt 0:02:01]} Rad8 {[%emt 0:12:03]} 16. Qf3 {[%emt 0:06:30]} Rxd1 {[%emt 0:01:47]} 17. Rxd1 {[%emt 0:00:07]} Rd8 {[%emt 0:00:13]} 18. Ba2 {[%emt 0:04:56]} Rxd1+ {[%emt 0:03:54]} 19. Qxd1 {[%emt 0:00:09]} h6 {[%emt 0:00:38]} 20. Be3 {[%emt 0:02:15]} Qd7 {[%emt 0:01:02]} 21. f3 {[%emt 0:01:53]} Qxd1+ {[%emt 0:01:03]} 22. Nxd1 {[%emt 0:00:04]} Nd7 {[%emt 0:00:22]} 23. b4 {[%emt 0:02:44]} c5 {[%emt 0:10:23]} 24. c3 c4 25. Bb1 a5 26. bxa5 1/2-1/2

[Event "URU-ch Semi Final 2020"]
[Site "Montevideo"]
[Date "2020.02.25"]
[Round "7.18"]
[White "De los Reyes, Mauro"]
[Black "Cayetano, Juan"]
[Result "0-1"]
[ECO "D05"]
[WhiteElo "1815"]
[BlackElo "1543"]
[Annotator "NA RC"]
[PlyCount "62"]
[EventDate "2020.02.22"]
[EventType "swiss"]
[EventCountry "URU"]
[SourceTitle "playchess.com"]
[Source "ChessBase"]
[SourceQuality "1"]
[TimeControl "5400+30"]

1. d4 {[%emt 0:00:00]} e6 {[%emt 0:00:00]} 2. e3 {[%emt 0:00:00]} d5 {[%emt 0:00:00]} 3. Bd3 {[%emt 0:00:00]} Nf6 {[%emt 0:00:00]} 4. Nf3 {[%emt 0:00:09]} c5 {[%emt 0:00:19]} 5. c3 {[%emt 0:00:19]} Nc6 {[%emt 0:00:09]} 6. Nbd2 {[%emt 0:00:34]} cxd4 {[%emt 0:00:36]} 7. exd4 {[%emt 0:01:54]} Bd6 {[%emt 0:00:26]} 8. O-O {[%emt 0:00:08]} O-O {[%emt 0:00:08]} 9. Re1 {[%emt 0:00:30]} Qc7 {[%emt 0:00:50]} 10. Nf1 {[%emt 0:00:04]} e5 {[%emt 0:01:32]} 11. dxe5 {[%emt 0:00:33]} Nxe5 {[%emt 0:00:08]} 12. Nxe5 {[%emt 0:00:59] D05: Colle System with ...e6.} Bxe5 {[%emt 0:00:11]} 13. h3 {[%emt 0:00:32] [#]} a5 $146 {[%emt 0:01:00]} ({Predecessor:} 13... Be6 14. Be3 a6 15. Rc1 Nd7 16. Bb1 b5 17. Qd3 f5 18. Bd4 Rae8 19. Rcd1 Bxd4 20. Qxd4 {½-½ (42) Schwertel,J (1961)-Goris,T (2060) Neustadt 2016}) 14. Bg5 {[%emt 0:05:58]} Nd7 {[%emt 0:02:06]} 15. Qh5 {[%emt 0:10:44]} f5 {[%emt 0:02:08]} (15... g6 $142 16. Qf3 Nb6) 16. Qf3 {[%emt 0:04:33]} Nb6 {[%emt 0:01:53]} 17. Ne3 {[%emt 0:01:23]} Qd6 {[%emt 0:01:39]} 18. Bxf5 $2 {[%emt 0:10:30]} ({Wrong is} 18. Nxf5 $2 Bxf5 19. Bxf5 g6 $19) (18. Nxd5 $18 Nxd5 19. Bc4) 18... g6 {[%emt 0:02:21]} 19. Be7 $17 {[%emt 0:11:57]} (19. Ng4 $11 {keeps the balance.} Rxf5 {[%mdl 64] Double Attack} 20. Nh6+ Kg7 21. Nxf5+ Bxf5 22. Rad1) 19... Qxe7 {[%emt 0:01:44]} 20. Nxd5 {[%emt 0:00:09]} Qd6 {[%emt 0:06:22]} 21. Nxb6 {[%emt 0:00:36]} Rxf5 {[%emt 0:01:09]} 22. Nxc8 {[%emt 0:04:05]} Rxc8 {[%emt 0:00:37]} 23. Qxb7 {[%emt 0:01:59]} Rb8 {[%emt 0:00:49]} 24. Qe4 {[%emt 0:00:34]} Rxb2 {[%emt 0:06:10]} 25. Qc4+ {[%emt 0:01:32]} Kg7 {[%emt 0:00:37]} 26. Rad1 {[%emt 0:00:23]} Qb6 {[%emt 0:01:54]} 27. Rd7+ {[%emt 0:00:55]} Kh6 {[%emt 0:00:38]} 28. Rf1 {[%emt 0:03:04]} Rf4 {[%emt 0:03:29]} 29. Qg8 {[%emt 0:07:50]} Qxf2+ {[%emt 0:00:33]} 30. Rxf2 {[%emt 0:00:47]} Rb1+ {[%emt 0:00:09]} 31. Kh2 {[%emt 0:00:12]} Rxf2# 0-1

[Event "URU-ch Semi Final 2020"]
[Site "Montevideo"]
[Date "2020.02.25"]
[Round "7.19"]
[White "Miraballes Lopez, Andres"]
[Black "Osinaga, Eduardo"]
[Result "1-0"]
[ECO "B54"]
[WhiteElo "1676"]
[BlackElo "1697"]
[Annotator "NA RC"]
[PlyCount "67"]
[EventDate "2020.02.22"]
[EventType "swiss"]
[EventCountry "URU"]
[SourceTitle "playchess.com"]
[Source "ChessBase"]
[SourceQuality "1"]
[TimeControl "5400+30"]

1. e4 {[%emt 0:11:39]} c5 {[%emt 0:00:00]} 2. Nf3 {[%emt 0:00:04]} d6 {[%emt 0:00:00]} 3. d4 {[%emt 0:00:07]} cxd4 {[%emt 0:00:00]} 4. Nxd4 {[%emt 0:00:02]} e5 {[%emt 0:00:21]} 5. Bb5+ {[%emt 0:00:04]} Bd7 {[%emt 0:00:20]} 6. Bxd7+ {[%emt 0:00:12]} Qxd7 {[%emt 0:00:13]} 7. Ne2 {[%emt 0:00:04]} h6 {[%emt 0:00:19]} 8. Be3 {[%emt 0:00:10]} Nf6 {[%emt 0:01:07]} 9. Nbc3 {[%emt 0:00:05]} Be7 {[%emt 0:00:41]} 10. h3 {[%emt 0:00:42]} O-O 11. O-O Nc6 {[%emt 0:04:32]} 12. Ng3 {[%emt 0:01:22]} Rfd8 {[%emt 0:02:29]} 13. Nd5 {[%emt 0:05:13]} Nxd5 {[%emt 0:09:04]} 14. exd5 {[%emt 0:04:35]} Na5 {[%emt 0:04:04]} 15. b3 {[%emt 0:01:37]} b6 {[%emt 0:01:44]} 16. Qd2 {[%emt 0:01:28]} f5 {[%emt 0:03:33]} 17. f4 {[%emt 0:04:00]} Bh4 {[%emt 0:03:51]} 18. fxe5 {[%emt 0:10:41]} Bxg3 {[%emt 0:01:47]} 19. e6 {[%emt 0:00:03]} Qe7 {[%emt 0:00:36]} 20. Rxf5 {[%emt 0:00:18]} Rf8 {[%emt 0:01:02]} 21. Rh5 {[%emt 0:06:37]} Qf6 {[%emt 0:00:47]} 22. Rd1 {[%emt 0:07:59]} Qg6 {[%emt 0:00:28]} 23. Qe2 {[%emt 0:00:36]} Bf2+ {[%emt 0:13:31]} 24. Bxf2 {[%emt 0:01:26]} Rxf2 {[%emt 0:00:09]} 25. Kxf2 {[%emt 0:01:04]} Rc8 {[%emt 0:00:33]} 26. Kg1 {[%emt 0:03:14]} Rxc2 {[%emt 0:00:19]} 27. Qg4 {[%emt 0:01:26]} Qxg4 {[%emt 0:07:43]} 28. hxg4 {[%emt 0:00:09]} Rc7 {[%emt 0:00:55]} 29. Rf5 {[%emt 0:01:09]} Nb7 {[%emt 0:01:32]} 30. Rdf1 {[%emt 0:01:21]} Nc5 {[%emt 0:03:09]} 31. Rf8+ {[%emt 0:00:35]} Kh7 {[%emt 0:00:16]} 32. R1f7 {[%emt 0:00:05]} Rxf7 {[%emt 0:00:26]} 33. Rxf7 {[%emt 0:00:27]} Kg8 {[%emt 0:00:24]} 34. Rxa7 {[%emt 0:00:32]} 1-0

[Event "URU-ch Semi Final 2020"]
[Site "Montevideo"]
[Date "2020.02.25"]
[Round "7.20"]
[White "Bon, Charles"]
[Black "Svarcas, Anibal"]
[Result "1-0"]
[ECO "C89"]
[WhiteElo "1614"]
[BlackElo "1672"]
[Annotator "NA RC"]
[PlyCount "55"]
[EventDate "2020.02.22"]
[EventType "swiss"]
[EventCountry "URU"]
[SourceTitle "playchess.com"]
[Source "ChessBase"]
[SourceQuality "1"]
[TimeControl "5400+30"]

1. e4 e5 2. Nf3 Nc6 3. Bb5 a6 4. Ba4 Nf6 5. O-O Be7 6. Re1 b5 7. Bb3 O-O 8. c3 d5 9. exd5 Nxd5 10. Nxe5 Nxe5 11. Rxe5 c6 12. d4 Bd6 13. Re1 Qh4 14. g3 Qh3 15. Qf3 Bg4 16. Qg2 Qh5 17. Bxd5 cxd5 18. Be3 Rae8 19. Nd2 f5 20. Qxd5+ {[%emt 0:32:27]} Kh8 {[%emt 0:10:38]} 21. Qxd6 {[%emt 0:02:48]} Rf6 {[%emt 0:00:10]} 22. Qd5 {[%emt 0:02:56]} Rfe6 {[%emt 0:01:54]} 23. b3 {[%emt 0:06:41]} Qh3 {[%emt 0:00:38]} 24. Qg2 {[%emt 0:00:45]} Qh5 {[%emt 0:00:17]} 25. f3 {[%emt 0:12:51]} Bh3 {[%emt 0:01:31]} 26. Qf2 {[%emt 0:00:53]} g5 {[%emt 0:00:26]} 27. d5 {[%emt 0:00:39]} Re5 {[%emt 0:00:33]} 28. Bd4 1-0